[Event "GER-ch Youth-U18 2022"]
[Site "Willingen"]
[Date "2022.06.05"]
[Round "1.13"]
[White "Geltz, Noah"]
[Black "Chen, Qingzhi Alexander"]
[Result "1-0"]
[ECO "B51"]
[WhiteElo "2156"]
[BlackElo "1879"]
[Annotator "TA"]
[PlyCount "85"]
[EventDate "2022.06.05"]
[EventType "swiss"]
[EventRounds "9"]
[EventCountry "GER"]
[SourceTitle "playchess.com"]
[Source "ChessBase"]
[SourceQuality "1"]
[TimeControl "40/4500+30:900+30"]

{[%evp 9,85,7,31,22,35,21,27,21,17,6,18,-19,15,-16,66,63,127,82,220,231,220,225,222,234,237,235,238,226,254,166,274,237,479,304,443,450,422,424,493,328,344,325,785,806,809,804,808,808,798,797,787,797,796,794,766,777,771,769,730,723,895,894,877,862,1330,1312,1330,1218,5326,6621,5924,5924,29984,29985,29985,29986,29986,29987]} 1. e4 {[%emt 0:00:00]} c5 {[%emt 0:00:00]} 2. Nf3 {[%emt 0:00:00]} d6 {[%emt 0:00:00]} 3. Bb5+ {[%emt 0:00:00]} Nd7 {[%emt 0:00:00]} 4. c4 {[%emt 0:00:00]} a6 {[%emt 0:00:00]} 5. Ba4 {[%emt 0:00:00]} g6 {[%emt 0:00:00]} 6. Nc3 {[%emt 0:00:00] B51: Sicilian: Moscow Variation (3 Bb5+) without 3...Bd7.} Bg7 {[%emt 0:00:00]} 7. d4 {[%emt 0:00:00]} cxd4 {[%emt 0:00:00]} 8. Nxd4 {[%emt 0:00:00] White has an edge.} Ngf6 {[%emt 0:00:00]} 9. O-O {[%emt 0:00:00]} O-O {[%emt 0:00:00] [#]} 10. Kh1 $146 {[%emt 0:00:00]} ({Predecessor:} 10. h3 e6 11. Be3 Qc7 12. Rc1 b6 13. Bxd7 Bxd7 14. Qd3 Rac8 15. b3 Qb7 16. Rfd1 {0-1 (49) Robson,R (2676)-Sasikiran,K (2650) Chess.com INT 2022}) 10... Ne5 {[%emt 0:09:22]} 11. Bb3 {[%emt 0:00:00]} h5 {[%emt 0:05:16]} ({Better is} 11... Bd7 $11) 12. f4 $14 {[%emt 0:08:40]} Bg4 {[%emt 0:04:42]} (12... Nc6 $14) 13. Qd2 {[%emt 0:02:09]} Bh6 {[%emt 0:03:27] [#] A mistake that costs the game.} (13... Nc6 $16 {might work better.}) 14. Qc2 $1 $18 {[%emt 0:02:16]} Nc6 {[%emt 0:04:17]} 15. Nxc6 {[%emt 0:00:21]} bxc6 {[%emt 0:00:05] [#]} 16. f5 $1 {[%emt 0:00:18]} Bxc1 {[%emt 0:06:39]} 17. Qxc1 {[%emt 0:00:56] Black must now prevent fxg6.} Kg7 {[%emt 0:01:34]} 18. h3 {[%emt 0:09:20]} e6 {[%emt 0:06:17][%cal Re6f5]} 19. Qg5 {[%emt 0:24:43]} Qa5 {[%emt 0:05:07]} (19... Nxe4 $142 20. Nxe4 Qxg5 21. Nxg5 Bxf5) 20. Rae1 {[%emt 0:04:25] Chess con chili.} (20. hxg4 hxg4 21. Qe3 Rh8+ 22. Kg1 Qe5 $16) 20... Rae8 $2 {[%emt 0:12:43]} (20... Qe5 {was worth a try.} 21. hxg4 Rab8) 21. hxg4 {[%emt 0:03:39][%cal Oe4e5] aiming for e5!} hxg4 {[%emt 0:01:20]} (21... Qe5 $142 22. Qf4 Qxf4 23. Rxf4 Nxg4) 22. e5 {[%emt 0:02:57]} Rh8+ {[%emt 0:05:21]} 23. Kg1 {[%emt 0:00:06]} Nd7 {[%emt 0:02:47]} 24. f6+ {[%emt 0:13:55]} Kg8 {[%emt 0:00:08]} 25. Ne4 {[%emt 0:02:18]} ({Don't play} 25. Qxg4 Qc5+ 26. Rf2 Nxe5 $18) 25... Rh5 $2 {[%emt 0:04:25] [#]} (25... d5 26. Nd6 Rd8) 26. Qxg6+ $3 {[%emt 0:00:42][%mdl 512]} fxg6 {[%emt 0:00:43]} 27. f7+ {[%emt 0:00:04]} Kf8 {[%emt 0:07:33]} 28. fxe8=Q+ {[%emt 0:00:06]} Kxe8 {[%emt 0:00:04]} 29. Nxd6+ {[%emt 0:00:10]} Ke7 {[%emt 0:00:03]} 30. Rf7+ {[%emt 0:00:10]} Kd8 {[%emt 0:00:51]} 31. Nb7+ {[%emt 0:00:07]} Ke8 {[%emt 0:00:07]} 32. Nxa5 {[%emt 0:00:07]} Kxf7 {[%emt 0:00:03]} 33. Nxc6 {[%emt 0:00:09]} g3 {[%emt 0:00:37]} 34. Bc2 {[%emt 0:02:56]} Rh8 {[%emt 0:01:08]} 35. Rf1+ {[%emt 0:00:50]} Kg7 {[%emt 0:00:24]} 36. Rd1 {[%emt 0:01:08]} Nb8 {[%emt 0:02:30]} 37. Nd8 {[%emt 0:00:26]} Rh4 {[%emt 0:00:58]} 38. b3 {[%emt 0:00:42]} Rh5 {[%emt 0:00:24]} 39. Nxe6+ {[%emt 0:00:15]} Kf7 {[%emt 0:01:17] [#]} 40. Bxg6+ $1 {[%emt 0:00:08]} Kxe6 {[%emt 0:00:04]} (40... Kxg6 41. Nf4+) 41. Bxh5 {[%emt 0:15:08] White mates.} Kxe5 {[%emt 0:15:03]} 42. Be8 {[%emt 0:00:15]} a5 {[%emt 0:00:31]} 43. Bb5 {[%emt 0:00:07] Weighted Error Value: White=0.33/Black=0.58} 1-0

[Event "GER-ch Youth-U18 2022"]
[Site "Willingen"]
[Date "2022.06.05"]
[Round "1.14"]
[White "Orf, Niklas"]
[Black "Bornholdt, Joa Max"]
[Result "0-1"]
[ECO "D00"]
[WhiteElo "1797"]
[BlackElo "2155"]
[Annotator "TA"]
[PlyCount "36"]
[EventDate "2022.06.05"]
[EventType "swiss"]
[EventRounds "9"]
[EventCountry "GER"]
[SourceTitle "playchess.com"]
[Source "ChessBase"]
[SourceQuality "1"]
[TimeControl "40/4500+30:900+30"]

{[%evp 9,36,0,41,-26,13,-3,-4,-7,4,-25,0,-14,16,-46,0,16,14,-18,-26,-22,-18,-17,-5,-143,-166,-170,-165,-160,-154]} 1. d4 {[%emt 0:00:00]} d5 {[%emt 0:00:00]} 2. Bf4 {[%emt 0:00:00]} c5 {[%emt 0:00:00]} 3. e3 {[%emt 0:00:00]} Nc6 {[%emt 0:00:00]} 4. Nf3 {[%emt 0:00:00]} Nf6 {[%emt 0:00:00]} 5. Nbd2 {[%emt 0:00:00]} g6 {[%emt 0:00:00]} 6. h3 {[%emt 0:00:00] D02: 1 d4 d5 2 Nf3 sidelines, including 2...Nf6 3 g3 and 2...Nf6 3 Bf4.} ({White should play} 6. dxc5 $14 Nh5 7. Bg5) 6... Bg7 {[%emt 0:00:00] [#]} 7. Nb3 $146 {[%emt 0:00:25]} ({Predecessor:} 7. c3 O-O 8. Bd3 Nd7 9. Bg5 b6 10. O-O Bb7 11. Re1 Qc7 12. e4 dxe4 13. Nxe4 cxd4 14. cxd4 Nxd4 15. Nxd4 Bxd4 {1-0 (65) Ibarra Jerez,J (2558)-Harshavardhan,G (2397) Chess.com INT 2021}) 7... Ne4 {[%emt 0:00:00]} 8. c3 {[%emt 0:01:40] The position is equal.} O-O {[%emt 0:10:57]} 9. dxc5 {[%emt 0:05:48]} e5 {[%emt 0:08:49]} 10. Bh2 {[%emt 0:00:46]} Be6 {[%emt 0:00:04]} 11. Bd3 {[%emt 0:13:43]} (11. Bb5 $11) 11... Ng5 {[%emt 0:10:52]} (11... Qe7 $15) 12. Be2 $11 {[%emt 0:14:03]} a5 {[%emt 0:02:56]} 13. Nbd2 {[%emt 0:11:46]} Nxf3+ {[%emt 0:07:08]} 14. Nxf3 {[%emt 0:00:53]} Qe7 {[%emt 0:00:05]} 15. Bb5 {[%emt 0:05:29]} f6 {[%emt 0:03:14]} ({Don't do} 15... Qxc5 16. Bxc6 bxc6 17. Bxe5 $14) 16. b4 {[%emt 0:04:18]} (16. Nd4 $1 $11 {remains equal.}) 16... axb4 $17 {[%emt 0:03:03] Black is clearly better.} 17. Bxc6 {[%emt 0:02:46]} bxc6 {[%emt 0:00:02]} 18. cxb4 {[%emt 0:00:10]} Qb7 {[%emt 0:00:22] Weighted Error Value: White=0.36/Black=0.21 (precise)} 0-1

[Event "GER-ch Youth-U18 2022"]
[Site "Willingen"]
[Date "2022.06.05"]
[Round "2.1"]
[White "Weihrauch, Jakob"]
[Black "Koelle, Tobias"]
[Result "1/2-1/2"]
[ECO "B32"]
[WhiteElo "2139"]
[BlackElo "2431"]
[Annotator "TA"]
[PlyCount "52"]
[EventDate "2022.06.05"]
[EventType "swiss"]
[EventRounds "9"]
[EventCountry "GER"]
[SourceTitle "playchess.com"]
[Source "ChessBase"]
[SourceQuality "1"]
[TimeControl "40/4500+30:900+30"]

{[%evp 14,52,20,22,31,28,23,13,29,25,45,42,52,0,-11,-14,-12,0,-9,-54,-39,-57,-62,-72,15,16,21,25,38,38,39,32,35,23,41,11,6,6,53,12,22]} 1. e4 {[%emt 0:00:00]} c5 {[%emt 0:00:00]} 2. Nf3 {[%emt 0:00:00][%cal Bg1f3,Bf3d4,Bd4b5,Bb5a3,Ba3c2][%mdl 32]} Nc6 {[%emt 0:00:00]} 3. d4 {[%emt 0:00:00]} cxd4 {[%emt 0:00:00]} 4. Nxd4 {[%emt 0:00:00]} e5 {[%emt 0:00:00]} 5. Nb5 {[%emt 0:00:00]} d6 {[%emt 0:00:00]} 6. c4 {[%emt 0:00:00]} Be6 $1 {[%emt 0:00:00][%mdl 4] is more profitable than 6...Be7 at the moment.} 7. N1c3 {[%emt 0:00:00]} a6 {[%emt 0:00:00]} 8. Na3 {[%emt 0:00:00]} g6 {[%emt 0:00:00] B32: Sicilian: Löwenthal and Kalashnikov Variations.} 9. Nc2 {[%emt 0:00:00]} Bg7 {[%emt 0:00:00] [#]} 10. Nd5 $146 {[%emt 0:00:47]} ({Predecessor:} 10. Be3 Nf6 11. Be2 Rc8 12. b3 O-O 13. O-O b5 14. cxb5 Ne7 15. Bd2 axb5 16. Bxb5 {0-1 (35) Anand,V (2753)-Maghsoodloo,P (2676) Chess.com INT 2020}) 10... Nf6 {[%emt 0:00:00]} 11. Bg5 {[%emt 0:12:58]} Bxd5 {[%emt 0:00:00]} 12. cxd5 {[%emt 0:08:06]} Ne7 {[%emt 0:00:00]} (12... Qa5+ $2 13. Bd2 Qc7 14. dxc6 $18) 13. Bxf6 {[%emt 0:10:37]} ({Better is} 13. f3 $14) 13... Bxf6 $11 {[%emt 0:00:00]} 14. h4 {[%emt 0:00:07]} Qb6 {[%emt 0:01:09]} 15. Qf3 {[%emt 0:07:27]} Bg7 {[%emt 0:04:10]} 16. O-O-O {[%emt 0:00:55]} f5 {[%emt 0:08:32]} 17. Bd3 {[%emt 0:13:50]} O-O {[%emt 0:03:42] Threatens to win with ...fxe4.} 18. Qe3 {[%emt 0:02:39]} Nc8 {[%emt 0:09:17]} (18... Qxe3+ $17 19. fxe3 Rac8) 19. h5 {[%emt 0:04:49]} Qxe3+ {[%emt 0:02:00]} 20. Nxe3 {[%emt 0:01:26][%cal Re4f5]} Ne7 {[%emt 0:06:56]} 21. hxg6 {[%emt 0:02:03]} hxg6 {[%emt 0:00:20]} 22. f3 {[%emt 0:00:22]} fxe4 {[%emt 0:08:02]} 23. fxe4 {[%emt 0:01:17]} Bf6 {[%emt 0:14:51]} 24. Kd2 {[%emt 0:03:07]} Bg5 {[%emt 0:02:29]} 25. Ke2 {[%emt 0:00:25]} Rf7 {[%emt 0:11:30]} (25... Kg7 $11) 26. Rdf1 {[%emt 0:03:53]} (26. Nc4 $5 {[%cal Rc4d6]}) 26... Bxe3 {[%emt 0:07:43] Weighted Error Value: White=0.13 (very precise) /Black=0.18 (very precise)} 1/2-1/2

[Event "GER-ch Youth-U18 2022"]
[Site "Willingen"]
[Date "2022.06.05"]
[Round "2.2"]
[White "Geltz, Noah"]
[Black "Fromm, Marius"]
[Result "0-1"]
[ECO "B40"]
[WhiteElo "2156"]
[BlackElo "2317"]
[Annotator "TA"]
[PlyCount "70"]
[EventDate "2022.06.05"]
[EventType "swiss"]
[EventRounds "9"]
[EventCountry "GER"]
[SourceTitle "playchess.com"]
[Source "ChessBase"]
[SourceQuality "1"]
[TimeControl "40/4500+30:900+30"]

{[%evp 9,70,0,11,0,3,0,0,0,0,0,0,0,13,-71,-46,-53,19,17,31,20,35,12,12,0,5,4,14,-45,-6,-3,0,-69,-73,-79,-80,-93,0,0,0,-128,-128,-132,-33,-93,-91,-112,-104,-443,-119,-220,-208,-316,-323,-510,-512,-487,-496,-689,-652,-1310,-1183,-1249,-1212]} 1. e4 {[%emt 0:00:00]} c5 {[%emt 0:00:00]} 2. Nf3 {[%emt 0:00:00]} e6 {[%emt 0:00:00]} 3. b3 {[%emt 0:00:00]} a6 {[%emt 0:00:00]} 4. Bb2 {[%emt 0:00:00]} Nc6 {[%emt 0:00:00]} 5. c4 {[%emt 0:00:00]} Qc7 {[%emt 0:00:00]} 6. g3 {[%emt 0:00:00] B40: Sicilian: 2...e6, Unusual lines.} Nf6 {[%emt 0:00:00]} 7. e5 {[%emt 0:00:00]} Ng4 {[%emt 0:00:00][%cal Rg4e5]} 8. Bg2 {[%emt 0:00:00] [#] The position is equal.} Ngxe5 $146 {[%emt 0:00:00]} ({Predecessor:} 8... Be7 9. O-O O-O 10. Re1 f6 11. exf6 Bxf6 12. Bxf6 Nxf6 13. d4 cxd4 14. Nxd4 e5 {1-0 (75) Antipov,M (2609)-Tsolakidou,S (2379) Chess.com INT 2021}) 9. Nxe5 {[%emt 0:00:00]} Nxe5 {[%emt 0:00:00]} 10. O-O {[%emt 0:00:00]} Nc6 {[%emt 0:01:47]} 11. Qg4 {[%emt 0:08:13]} (11. Re1 $1 $11 {remains equal.}) 11... h5 {[%emt 0:04:58]} 12. Qe4 {[%emt 0:11:46]} Nd4 {[%emt 0:09:23]} (12... h4 $15) 13. Bxd4 $11 {[%emt 0:07:53] Hoping for Bb2.} cxd4 {[%emt 0:00:04]} 14. Qxd4 {[%emt 0:00:10]} Qc5 {[%emt 0:11:48]} 15. Qb2 {[%emt 0:03:26]} h4 {[%emt 0:00:09]} 16. Re1 {[%emt 0:11:03]} hxg3 {[%emt 0:01:26]} 17. hxg3 {[%emt 0:00:05]} Rb8 {[%emt 0:06:03]} 18. Re5 {[%emt 0:04:42]} (18. Nc3 $11) 18... Qa7 {[%emt 0:01:28] With the idea ...b5.} 19. d4 {[%emt 0:03:47]} Be7 {[%emt 0:00:07]} 20. Nc3 {[%emt 0:10:52] Inhibits b5.} ({White should try} 20. Nd2 $11) 20... Qxd4 $15 {[%emt 0:02:12]} 21. Re4 {[%emt 0:01:16]} Qf6 {[%emt 0:05:15]} 22. Rf4 {[%emt 0:01:54]} Qh6 {[%emt 0:05:50]} (22... Qe5 $1 $17 {White must now prevent ...b5.} 23. Re4 Qf6) 23. Ne4 $11 {[%emt 0:01:34]} g5 {[%emt 0:09:26]} 24. Nf6+ {[%emt 0:02:53]} (24. Rf6 $11 Qg7 25. Qe5 (25. Nd6+ Kd8 $11)) 24... Kf8 $1 $17 {[%emt 0:01:16]} (24... Bxf6 25. Rxf6 Qh5 26. Qe5 $16 (26. Kf1 b5 $14)) 25. Rf3 {[%emt 0:01:19][%cal Oc4c5]} (25. Ng4 Qg7 26. Qxg7+ Kxg7 $19) 25... Qg7 {[%emt 0:00:46]} ({Black should play} 25... d6 $17 {Strongly threatening ...e5.} 26. Kf1 Qg7) 26. Qd4 {[%emt 0:02:00]} (26. Qe5 d6 27. Qc3 Rh6 $17) (26. Rd1 $15) 26... b6 $1 {[%emt 0:06:46] aiming for ...Rh6.} (26... Qh6 27. Ng4 Qh5 28. Qa7 Qxg4 29. Rd1 $16 (29. Qxb8 Qd4 $11)) 27. Rd1 {[%emt 0:00:17] [#]} (27. Qe5 $2 d6 28. Qc3 g4 29. Nxg4 Qxc3 30. Rxc3 f5 $19) 27... d6 $1 $36 {[%emt 0:03:20][%mdl 2048] Prevents Qe5. Black is in control.} (27... Qh6 28. Qe5 Rb7 29. Ng4 $16) 28. Qd2 $2 {[%emt 0:04:09][%mdl 8192] [#]} Qg6 $2 {[%emt 0:01:11]} ({And not} 28... Qh6 29. Re1 $17) (28... g4 $1 $19 {[%cal Rg4f3] and Black stays clearly on top.} 29. Rf4 e5) 29. Ne4 {[%emt 0:02:14]} Bb7 $19 {[%emt 0:00:07]} 30. Re3 {[%emt 0:04:24]} (30. Re1 $142) 30... Qh5 {[%emt 0:01:07]} 31. Qd4 {[%emt 0:01:56]} (31. Kf1 $142) 31... e5 {[%emt 0:01:18] Black is clearly winning.} 32. Qd3 {[%emt 0:01:53]} f5 {[%emt 0:00:04]} 33. Rf3 {[%emt 0:00:18]} g4 {[%emt 0:00:46]} ({Worse is} 33... Bxe4 34. Qxe4 f4 35. Qf5+ Qf7 36. Qe4 $15) 34. Nf6 {[%emt 0:00:10]} Qh2+ {[%emt 0:00:16]} 35. Kf1 {[%emt 0:00:14] [#]} Qxg2+ $3 {[%emt 0:00:27][%mdl 512] Weighted Error Value: White=0.71/Black=0.31} 0-1

[Event "GER-ch Youth-U18 2022"]
[Site "Willingen"]
[Date "2022.06.05"]
[Round "2.3"]
[White "Bornholdt, Joa Max"]
[Black "Hinrichs, Paul"]
[Result "0-1"]
[ECO "D70"]
[WhiteElo "2155"]
[BlackElo "2244"]
[Annotator "TA"]
[PlyCount "112"]
[EventDate "2022.06.05"]
[EventType "swiss"]
[EventRounds "9"]
[EventCountry "GER"]
[SourceTitle "playchess.com"]
[Source "ChessBase"]
[SourceQuality "1"]
[TimeControl "40/4500+30:900+30"]

{[%evp 9,112,15,26,22,34,33,67,73,70,68,64,67,69,68,108,106,95,77,103,60,62,62,62,41,38,30,43,28,27,27,26,26,30,29,34,29,35,35,35,35,42,42,42,34,34,34,34,34,83,89,215,42,194,42,42,34,34,19,42,42,868,490,858,838,1515,1531,1345,1273,1723,1654,1445,1104,1301,1279,900,59,60,60,201,201,12832,6632,12836,12837,12837,12837,12838,12838,12838,12839,12839,12839,12840,-12836,-12836,-12837,-12837,-12837,-12838,-12839,-12839,-12839,1,-12840,-12839]} 1. d4 {[%emt 0:00:00]} d5 {[%emt 0:00:00]} 2. c4 {[%emt 0:00:00]} c6 {[%emt 0:00:00]} 3. Nf3 {[%emt 0:00:00]} Nf6 {[%emt 0:00:00]} 4. Nbd2 {[%emt 0:00:00]} e6 {[%emt 0:00:00]} 5. g3 {[%emt 0:00:00]} Bd6 {[%emt 0:00:00]} 6. Bg2 {[%emt 0:00:00] D30: Queen's Gambit Declined: Systems without Nc3.} Nbd7 {[%emt 0:00:00]} 7. O-O {[%emt 0:00:00]} h6 {[%emt 0:00:00]} 8. Qc2 {[%emt 0:00:00] [#] White is slightly better.} b5 $146 {[%emt 0:02:15]} ({Predecessor:} 8... O-O 9. Rd1 b5 10. c5 Bc7 11. a4 b4 12. a5 Ba6 13. e4 dxe4 14. Nxe4 Nxe4 15. Qxe4 Nxc5 16. Qc2 Nb7 {½-½ (53) Domogaev,S (2365)-Pshmahov,O (2039) Voronezh 2019}) 9. e4 {[%emt 0:03:23]} dxe4 {[%emt 0:05:12]} 10. Nxe4 {[%emt 0:00:08]} Nxe4 {[%emt 0:00:17]} 11. Qxe4 {[%emt 0:00:06]} Rb8 {[%emt 0:00:52]} 12. c5 {[%emt 0:05:51]} (12. Qxc6 Rb6 13. Qa8 bxc4 $11) 12... Bc7 {[%emt 0:06:01]} 13. b4 {[%emt 0:15:59]} (13. Qxc6 $2 Bb7 14. Qxb5 Bxf3 $19) 13... a5 {[%emt 0:06:24]} 14. Ne5 {[%emt 0:05:27]} ({Don't blunder} 14. Qxc6 $2 Bb7 15. Qxb7 Rxb7 $19) 14... Nxe5 {[%emt 0:02:14]} 15. dxe5 {[%emt 0:00:07]} O-O {[%emt 0:03:38]} 16. Bf4 {[%emt 0:11:05]} (16. Qxc6 Bb7 17. Qxb7 Rxb7 18. Bxb7 Bxe5 $17) 16... axb4 {[%emt 0:02:08]} 17. Rfd1 {[%emt 0:02:34]} ({Stronger than} 17. Qxc6 Bb7 18. Qxb7 Rxb7 19. Bxb7 g5 $17) 17... Qe7 {[%emt 0:05:45]} 18. Be3 {[%emt 0:00:23]} Bb7 {[%emt 0:00:37]} 19. f4 {[%emt 0:02:02]} Rfd8 {[%emt 0:04:19]} 20. Qxb4 {[%emt 0:00:48]} Rxd1+ {[%emt 0:01:55]} 21. Rxd1 {[%emt 0:00:06]} Ra8 {[%emt 0:03:22]} 22. Qb3 {[%emt 0:01:50]} Rd8 {[%emt 0:10:33]} 23. Ra1 {[%emt 0:09:19]} Qd7 {[%emt 0:02:07]} 24. Be4 {[%emt 0:00:14]} Ba5 {[%emt 0:01:17]} 25. Kg2 {[%emt 0:00:50]} g6 {[%emt 0:02:35]} 26. Kf3 {[%emt 0:02:46]} Kg7 {[%emt 0:01:40]} 27. h3 {[%emt 0:03:31]} Qe7 {[%emt 0:01:31]} 28. Rd1 {[%emt 0:00:49]} Rd7 {[%emt 0:03:12]} (28... h5 $14) 29. Rd6 $16 {[%emt 0:02:37]} Bc7 {[%emt 0:02:43]} (29... Rd8 $16 {was called for.}) 30. Qc3 $2 {[%emt 0:03:16]} Qd8 $2 {[%emt 0:02:12] [#]} ({Better is} 30... Rd8 $14) 31. Rxd7 $2 {[%emt 0:05:43]} ({But not} 31. Bxc6 $2 Bxc6+ 32. Kf2 (32. Rxc6 $2 Qa8 $19) 32... Bxd6 33. exd6+ f6 $19) (31. f5 $1 $18 {[%cal Rf5e6]} Bxd6 (31... gxf5 32. Bxf5) 32. exd6+ e5 33. Qxe5+ f6 34. Qe6) 31... Qxd7 $14 {[%emt 0:01:21]} 32. Qc2 {[%emt 0:03:55]} Ba5 {[%emt 0:03:59]} 33. Ke2 {[%emt 0:03:07]} h5 {[%emt 0:02:01]} 34. Bd2 {[%emt 0:02:14]} Qxd2+ {[%emt 0:04:17][%mdl 8192]} (34... Qd8 $14) 35. Qxd2 $18 {[%emt 0:00:06]} Bxd2 {[%emt 0:00:03]} 36. Kxd2 $14 {[%emt 0:00:10][%mdl 4096] Endgame KB-KB} Kf8 {[%emt 0:00:02]} 37. Kc3 {[%emt 0:00:47]} Ke7 {[%emt 0:00:02]} 38. Kb4 {[%emt 0:00:32]} Kd7 {[%emt 0:00:02]} 39. Ka5 {[%emt 0:00:32] aiming for Kb6.} Kc7 {[%emt 0:00:02]} 40. Bd3 {[%emt 0:00:20]} Bc8 {[%emt 0:00:16]} 41. a3 {[%emt 0:16:44]} Kb7 {[%emt 0:15:54]} 42. g4 $2 {[%emt 0:02:12]} ({Only move:} 42. h4 $18 Ka7 43. Be4) 42... hxg4 {[%emt 0:00:06]} 43. hxg4 {[%emt 0:00:04]} Ka7 {[%emt 0:00:25] [#]} (43... Kc7 $14) 44. Bxb5 $1 $18 {[%emt 0:00:00]} cxb5 {[%emt 0:00:00] KB-KP} (44... Bd7 45. Ba6 Be8) 45. c6 {[%emt 0:00:00]} g5 {[%emt 0:00:00]} 46. fxg5 {[%emt 0:00:00]} Ba6 {[%emt 0:00:00] [#]} 47. g6 $1 {[%emt 0:00:00]} fxg6 {[%emt 0:00:00]} 48. g5 {[%emt 0:00:00]} Bc8 {[%emt 0:00:00]} 49. Kxb5 {[%emt 0:00:00]} Kb8 {[%emt 0:00:00]} 50. Kb6 {[%emt 0:00:00]} Bb7 {[%emt 0:00:00]} 51. a4 $4 {[%emt 0:00:00][%mdl 8192]} (51. Kc5 $18 Ba6 52. Kd6) 51... Ba8 $19 {[%emt 0:00:00]} 52. a5 {[%emt 0:00:00]} Kc8 {[%emt 0:00:00]} 53. a6 {[%emt 0:00:00]} Kb8 {[%emt 0:00:00]} 54. c7+ {[%emt 0:00:00]} Kc8 {[%emt 0:00:00]} 55. Ka7 {[%emt 0:01:04]} Bf3 {[%emt 0:00:00]} 56. Kb6 {[%emt 0:00:04]} Be4 {[%emt 0:00:00] Black used his chance.  Weighted Error Value: White=0.45/Black=0.39} 0-1